Workbook

Sheet 附件1
A1: 附件1：
A2: 2025年蓬江区一般公共预算调整情况表
J3: 单位：万元
A4: 收 入 | F4: 支 出
A5: 项目 | B5: 年初预算数 | C5: 第一次调整后预算数 | D5: 调整额 | E5: 第二次调整后预算数 | F5: 项目 | G5: 年初预算数 | H5: 第一次调整后预算数 | I5: 调整额 | J5: 第二次调整后预算数 | K5: 11月份 | L5: 12月预计 | M5: 调整金额
A6: 一、一般公共预算收入 | B6: 326,133 | C6: 348,460 | D6: =E6-C6 -> 0 | E6: =SUM(E7:E8) -> 348,460 | F6: 一、一般公共预算支出 | G6: 501,138 | H6: 501,138 | I6: =J6-H6 -> -117,819 | J6: 383,319 | K6: 325,035 | L6: =54401+9+4574 -> 58,984 | M6: -700
A7: 税收收入 | B7: 199,496 | C7: 221,823 | D7: -16,226 | E7: 205,597
A8: 非税收入 | B8: 126,637 | C8: 126,637 | D8: 16,226 | E8: =142843+20 -> 142,863
A9: 二、上年结转收入 | B9: 3,316 | C9: 5,386 | D9: 0 | E9: 5,386 | F9: 二、转移性支出 | G9: =G10+G11 -> 74,709 | H9: 99,043 | I9: =J9-H9 -> 21,956 | J9: 120,999
A10: 三、转移性收入 | B10: =B11+B12 -> 113,398 | C10: =C11+C12 -> 113,398 | D10: -4,839 | E10: =E11+E12 -> 108,559 | F10: （一）上解上级支出 | G10: 74,709 | H10: =G10+20742+3592 -> 99,043 | I10: 21,956 | J10: 120,999
A11: （一）上级补助收入 | B11: 113,398 | C11: 113,398 | D11: -4,839 | E11: =108579-20 -> 108,559 | F11: （二）补助下级支出
A12: （二）下级上解收入 | F12: 三、债务还本支出 | G12: 569 | H12: 569 | I12: 20,000 | J12: 20,569 | K12: 63 | L12: 20,506
A13: 四、债务转贷收入 | B13: =B14+B15 -> 10,569 | C13: =C14+C15 -> 10,506 | D13: =E13-C13 -> 20,000 | E13: 30,506 | F13: 四、结转下年支出
A14: （一）再融资债券收入 | B14: 569 | C14: 506 | D14: 20,000 | E14: 20,506
A15: （二）一般债券收入 | B15: 10,000 | C15: 10,000 | D15: 0 | E15: 10,000
A16: 五、调入资金 | B16: =B17+B18 -> 123,000 | C16: =C17+C18 -> 123,000 | D16: -91,024 | E16: =E17+E18+E19 -> 31,976
A17: （一）调入政府性基金预算资金 | B17: 118,000 | C17: 118,000 | D17: -91,643 | E17: 26,357
A18: （二）调入国有资本预算资金 | B18: 5,000 | C18: 5,000 | D18: -768 | E18: 4,232
A19: （三）调入其他资金 | D19: 1,387 | E19: 1,387
A20: （四）调入预算稳定调节金
A21: 收入总计 | B21: =B6+B9+B10+B13+B16 -> 576,416 | C21: =C6+C9+C10+C13+C16 -> 600,750 | D21: =E21-C21 -> -75,863 | E21: =E6+E9+E10+E13+E16 -> 524,887 | F21: 支出总计 | G21: =G6+G9+G12 -> 576,416 | H21: 600,750 | I21: =J21-H21 -> -75,863 | J21: 524,887
